Cogmind - Beta 10.2 --- EXPLORER MODE // 2021.11.05 @ 08:34:32 Player: badmuff Result: Destroyed by Y-45 Defender with Heavy Assault Rifle Performance ------------- Evolutions (1) 500 Regions Visited (2) 400 Robots Destroyed (11) 55 Value Destroyed (370) 370 Prototype IDs (0) 0 Alien Tech Used (0) 0 Bonus (0) 0 TOTAL SCORE: 1325 Bonus ------- None Cogmind --------- Core Integrity 0/400 Matter 300/300 Energy 246/250 System Corruption 0% Temperature Cool (10) Movement Walking (120) Location -9/Materials Parts ------- > --- POWER (3) -------- Ion Engine > --- PROPULSION (2) --- Advanced Treads Improved Aluminum Leg > --- UTILITY (3) ------ Weight Redist. System Armor Integrity Analyzer Improved Power Shielding > --- WEAPON (2) ------- Spread Laser Shock Bomb Launcher > --- INVENTORY (4) ---- Aluminum Leg Peak State ------------ > --- POWER ------------ Ion Engine > --- PROPULSION ------- Advanced Treads Improved Aluminum Leg > --- UTILITY ---------- Weight Redist. System Armor Integrity Analyzer Improved Power Shielding > --- WEAPON ----------- Spread Laser Shock Bomb Launcher > --- INVENTORY -------- Aluminum Leg [Rating: 18] Favorites ----------- Power Ion Engine Engine Ion Engine Propulsion Aluminum Leg Treads Advanced Treads Leg Aluminum Leg Hover Unit Hover Unit Utility Power Shielding Device Sensor Array Storage Medium Battery Processor Armor Integrity Analyzer Protection Power Shielding Weapon Beam Rifle Energy Gun Beam Rifle Ballistic Gun Light Assault Rifle Launcher Shock Bomb Launcher Build | -11 -10 -9 ------- Run | Scr Mat Mat Slots Evolved 3 | . 1 2 Power 2 | . 1 1 Propulsion . | . . . Utility 1 | . . 1 Weapon . | . . . Parts Attached 35 | 7 13 15 Power 6 | 1 2 3 Engine 6 | 1 2 3 Core . | . . . Reactor . | . . . Propulsion 7 | 2 2 3 Treads 1 | . . 1 Leg 3 | 2 . 1 Wheel . | . . . Hover 3 | . 2 1 Flight . | . . . Utility 11 | 2 4 5 Device 3 | 1 1 1 Storage 2 | . 2 . Processor 1 | . . 1 Hackware . | . . . Protection 5 | 1 1 3 Artifact . | . . . Weapon 11 | 2 5 4 Energy Gun 7 | 1 5 1 Energy Cannon . | . . . Ballistic Gun 2 | 1 . 1 Ballistic Cannon . | . . . Launcher 2 | . . 2 Special Weapon . | . . . Impact Weapon . | . . . Slashing Weapon . | . . . Piercing Weapon . | . . . Special Melee Weapon . | . . . Unidentified Prototypes . | . . . Parts Lost 10 | . 3 7 Power 3 | . . 3 Propulsion 3 | . 2 1 Utility 1 | . . 1 Weapon 3 | . 1 2 Highest Loss Streak 7 | . 3 7 Average Slot Usage (%) 58 | . 76 38 Engine 14 | . 21 7 Treads 2 | . . 5 Leg 3 | . 5 . Hover 1 | . 3 . Storage 4 | . 8 . Processor 2 | . . 4 Protection 10 | . 12 9 Energy Gun 15 | . 22 6 Launcher 1 | . . 3 Naked Turns 42 | . . 42 Heaviest Build 21 | 10 19 21 Greatest Support 22 | 20 20 22 Greatest Overweight (x) 6 | 3 6 6 Average Overweight (x) 1 | . 2 . Largest Inventory Capacity 4 | 4 4 4 Average Capacity 4 | 4 4 4 Most Carried 4 | 2 4 4 Average Carried 1 | 1 2 . Final Capacity 4 | 4 4 4 Final Carried 2 | 2 1 1 Class Distribution -------------------- 100% | Hacker-Mutant Dominant Class ---------------- Hacker-Mutant | -10/Materials Hacker-Mutant | -9/Materials Resources | -11 -10 -9 ----------- Run | Scr Mat Mat Matter Collected 573 | . 308 265 Remotely . | . . . Salvage Created 442 | . 148 294 Parts 19 | . 4 15 Haulers Intercepted . | . . . Recyclers Shooed . | . . . Parts Field Recycled . | . . . Retrieved Matter . | . . . Parts Self-Destructed . | . . . Prevented . | . . . Kills | -11 -10 -9 ------- Run | Scr Mat Mat Combat Hostiles Destroyed 8 | . 2 6 Guns 8 | . 2 6 Classes Destroyed 5 | . 2 3 Watcher 3 | . 2 1 Grunt 4 | . 2 2 Brawler 1 | . . 1 Duelist 1 | . . 1 Sentry 2 | . . 2 Best Kill Streak 3 | . 1 3 Combat Bots Only 2 | . 1 2 Max Kills in Single Turn 1 | . 1 1 Gunslinging . | . . . Exploded . | . . . Melee . | . . . Uniques/NPCs Destroyed . | . . . Combat | -11 -10 -9 -------- Run | Scr Mat Mat Damage Taken 1183 | . 191 992 Core 470 | . 60 410 Absorbed by Shields . | . . . Core Remaining (%) 88 | 100 76 . Volleys Fired 71 | . 28 43 Largest 2 | . 2 1 Hottest 112 | . 112 65 Shots Fired 89 | . 46 43 Gun 88 | . 46 42 Cannon . | . . . Launcher 1 | . . 1 Special . | . . . Kinetic 9 | . . 9 Thermal 79 | . 46 33 Explosive . | . . . Electromagnetic 1 | . . 1 Robot Hit Streak 23 | . 18 23 Robot Miss Streak 2 | . 1 2 Penetration Max . | . . . Secondary Targets . | . . . Shots Hit Robots 69 | . 33 36 Core Hits 26 | . 8 18 Critical Hits . | . . . Critical Kills . | . . . Critical Parts Destroyed . | . . . Melee Attacks . | . . . Impact . | . . . Slashing . | . . . Piercing . | . . . Sneak Attacks . | . . . Combat Hostiles . | . . . Follow-up Attacks . | . . . Damage Inflicted 985 | . 427 558 Guns 944 | . 425 519 Cannons . | . . . Explosions 22 | . . 22 Melee . | . . . Ramming 19 | . 2 17 Kinetic 123 | . . 123 Thermal 821 | . 425 396 Explosive . | . . . Electromagnetic 22 | . . 22 Impact . | . . . Slashing . | . . . Piercing . | . . . Highest Corruption . | . . . Average Corruption . | . . . Corruption Purged . | . . . Overload Shots . | . . . Overflow Damage . | . . . Projectiles . | . . . Explosions . | . . . Melee . | . . . Knockbacks . | . . . Impact . | . . . Kinetic . | . . . Secondary . | . . . Self-Inflicted Damage 7 | . . 7 Shots . | . . . Rammed 4 | . . 4 Targets Rammed 5 | . 1 4 Kicked 1 | . 1 . Crushed . | . . . Highest Temperature 606 | . 606 252 Average Temperature 139 | . 170 104 Received Heat Transfer 666 | . 153 513 Effects 17 | . 16 1 Shutdowns 6 | . 6 . Energy Bleed 1 | . . 1 Matter Decay 3 | . 3 . Short Circuit 3 | . 3 . Damage (major) 3 | . 3 . Damage (core) 1 | . 1 . Siege Activations . | . . . Robots Corrupted . | . . . Combat Hostiles . | . . . Parts Fried . | . . . Impact Corruptions . | . . . Robots Melted . | . . . Combat Hostiles . | . . . Parts Melted 3 | . 1 2 Heat Transferred 2002 | . 1110 892 Parts Sabotaged . | . . . Parts Stolen . | . . . Parts Stripped . | . . . Power Chain Reactions . | . . . Missiles Intercepted . | . . . Alert | -11 -10 -9 ------- Run | Scr Mat Mat Peak Influence 129 | . 57 129 Initial 2 | . . 2 Average 31 | . 22 44 Maximum Alert Level . | . . . Low Security (%) 100 | 100 100 100 Level 1 . | . . . Level 2 . | . . . Level 3 . | . . . Level 4 . | . . . Level 5 . | . . . High Security . | . . . Max Security . | . . . Squads Dispatched 1 | . . 1 Investigation . | . . . Extermination . | . . . Reinforcement 1 | . . 1 Assault . | . . . Garrison . | . . . Intercept . | . . . Construction Impeded . | . . . Haulers Reinforced . | . . . Stealth | -11 -10 -9 --------- Run | Scr Mat Mat Distress Signals 3 | . . 3 Communications Jammed . | . . . Distress Signals . | . . . Times Spotted 26 | . 9 17 Peak Tracking Total 5 | . 3 5 Tactical Retreats 6 | . 1 5 Traps | -11 -10 -9 ------- Run | Scr Mat Mat Traps Triggered . | . . . Indirectly . | . . . Trap Hack Attempts . | . . . Triggered . | . . . Disarmed . | . . . Reprogrammed . | . . . Reused . | . . . Traps Extracted . | . . . Installed . | . . . Triggered . | . . . Machines | -11 -10 -9 ---------- Run | Scr Mat Mat Machines Disabled . | . . . Max in Single Turn . | . . . Machines Sabotaged . | . . . Garrisons Compromised . | . . . Overloaded Fab Kills . | . . . Fab Network Shutdowns . | . . . Hacking | -11 -10 -9 --------- Run | Scr Mat Mat Machines Accessed 6 | . 3 3 Terminals 5 | . 2 3 Fabricators . | . . . Repair Stations 1 | . 1 . Recycling Units . | . . . Scanalyzers . | . . . Garrison Access . | . . . Total Hacks 10 | . 5 5 Successful 9 | . 5 4 Failed 1 | . . 1 Catastrophic . | . . . Database Lockouts . | . . . Manual . | . . . Terminals 8 | . 3 5 Fabricators . | . . . Repair Stations 2 | . 2 . Recycling Units . | . . . Scanalyzers . | . . . Garrison Access . | . . . Terminal Hacks 7 | . 3 4 Record 3 | . 1 2 Robot Analysis 1 | . 1 . Locate Traps 1 | . 1 . Dispatch Records 1 | . . 1 Maintenance Status 1 | . . 1 Fabricator Hacks . | . . . Repair Station Hacks 2 | . 2 . Scan Component 1 | . 1 . Repair 1 | . 1 . Recycling Unit Hacks . | . . . Scanalyzer . | . . . Garrison Access Hacks . | . . . Unauthorized Hacks . | . . . Terminals . | . . . Fabricators . | . . . Repair Stations . | . . . Recycling Units . | . . . Scanalyzers . | . . . Garrison Access . | . . . Data Cores Recovered . | . . . Used . | . . . Hacking Detections 2 | . 1 1 Full Trace Events . | . . . Feedback Events . | . . . Feedback Blocked . | . . . Robot Schematics Acquired . | . . . Robots Built . | . . . Matter . | . . . Time . | . . . Total Robot Build Rating . | . . . Part Schematics Acquired . | . . . Parts Built . | . . . Matter . | . . . Time . | . . . Total Part Build Rating . | . . . Parts Repaired 1 | . 1 . Time 13 | . 13 . Parts Recycled . | . . . Recycled Matter . | . . . Retrieved Matter . | . . . Retrieved Components . | . . . Parts Scanalyzed . | . . . Part Schematics Acquired . | . . . Parts Damaged . | . . . Bothacking | -11 -10 -9 ------------ Run | Scr Mat Mat Used RIF Installer . | . . . Robots Hacked . | . . . Non-combat . | . . . Combat . | . . . Robot Hacks Applied . | . . . Relay Couplers Released . | . . . Robots Rewired . | . . . Allies Hacked . | . . . Hacks Repelled . | . . . Allies | -11 -10 -9 -------- Run | Scr Mat Mat Total Allies . | . . . Largest Group . | . . . Highest-Rated Group . | . . . Highest-Rated Ally . | . . . Total Orders . | . . . Ally Attacks . | . . . Total Damage . | . . . Kills . | . . . Allies Corrupted . | . . . Allies Melted . | . . . Intel | -11 -10 -9 ------- Run | Scr Mat Mat Robot Analysis Total 1 | . 1 . Derelict Logs Recovered . | . . . Drone Launches . | . . . Drone Recoveries . | . . . Exploration | -11 -10 -9 ------------- Run | Scr Mat Mat Turns Passed 2104 | 71 1068 965 Spaces Moved 1079 | 46 482 551 Core 359 | 13 150 196 Treads 324 | . . 324 Legs 302 | 33 242 27 Wheels . | . . . Hover 94 | . 90 4 Flight . | . . . Fastest Speed 50 | 50 116 50 Average Speed 171 | 120 198 151 Slowest Speed 350 | 200 350 350 Overloaded Moves . | . . . Propulsion Burnouts . | . . . Robots Hopped . | . . . Cave-ins Triggered . | . . . Exploration Rate (%) 23 | 5 36 28 Regions Visited 2 Branch Regions . Pre-discovered Areas . | . . . Known Exits Taken 2 | 1 1 . Unknown Exits Taken . | . . . Scrap Searched . | . . . Spaces Dug . | . . . Terrain Destroyed . | . . . Melee . | . . . Projectile . | . . . AOE . | . . . Terrain Rammed . | . . . Walls Destroyed . | . . . Machines Disabled . | . . . Actions | -11 -10 -9 --------- Run | Scr Mat Mat Total 1261 | 61 560 640 Wait . | . . . Move 1077 | 45 481 551 Hop . | . . . Pick Up 39 | 9 15 15 Fast Attach . | . . . Attach 35 | 7 13 15 Detach 15 | . 9 6 Swap . | . . . Drop 19 | . 13 6 Fire 71 | . 28 43 Melee . | . . . Ram 4 | . . 4 Kick 1 | . 1 . Crush . | . . . Escape Stasis . | . . . Rewire . | . . . Trap . | . . . Miscellaneous . | . . . Route ------- -11/Scrapyard -10/Materials (discovered 2 exits: *Mat / *Min) -9/Materials History --------- Turn | Location | Event 12 | -11/Scrapyard | Identified exit to Materials 12 | -11/Scrapyard | Discovered exit to Materials (range 15) 72 | -11/Scrapyard | Entered Materials 72 | -10/Materials | Evolved 1 slot: Power x1 137 | -10/Materials | Identified exit to Mines 137 | -10/Materials | Discovered exit to Mines (range 12) 142 | -10/Materials | Identified exit to Materials 142 | -10/Materials | Discovered exit to Materials (range 14) 311 | -10/Materials | Build established: Hacker-Mutant 721 | -10/Materials | Lost 3 parts (2n1w) 953 | -10/Materials | Repaired Med. Laser 1140 | -10/Materials | Entered another Materials area 1140 | -9/Materials | Evolved 2 slots: Power x1, Utility x1 1498 | -9/Materials | Core integrity fell below 50% 1525 | -9/Materials | Core integrity fell below 20% 1559 | -9/Materials | Lost 7 parts (3p1n1u2w) 2105 | -9/Materials | Destroyed by Y-45 Defender with Heavy Assault Rifle Last Messages --------------- 1x Reinforcement 01678_ Acquired Armor Integrity Analyzer. 01789_ K-01 Serf cleans the Terminal. 01828_ Acquired Spread Laser. 01912_ U-05 Engineer lays Concrete. 01913_ C-30 ARC bursts open, deploying its payload. 01913_ B-36 Bruiser unfolds itself. 01933_ G-34 Mercenary destroyed. 01937_ Acquired 23 matter. 01951_ B-36 Bruiser destroyed. 01953_ Acquired 48 matter. 01976_ Acquired 24 matter. 02002_ K-01 Serf collects debris. 02028_ K-01 Serf cleans the Terminal. 02063_ Acquired Ion Engine. 02065_ Acquired 10 matter. 02068_ Acquired Imp. Aluminum Leg. 02071_ Acquired Aluminum Leg. 02073_ Acquired Weight Redist. System. 02078_ Acquired 30 matter. Map ----- +----------------------------------------------------+ | ?????????????????????????????????????????????????? | | ?????????????????????????????????????????????????? | | ?????????????????????????????????????????????????? | | ?????????????????????????????????????????????????? | | ?????????????????????????????????????????????????? | | ?????????????????????????????????????????????????? | | ?????????????????????????????????????????????????? | | ?????????????????????????????????????????????????? | | ?????????????????????????????????????????????????? | | ?????????????????????????????????????????????????? | | ???????????????????????? Y ??????????????????????? | | ??????????????????????? ??????????????????????? | | ??????????????????????? ??????????????????????? | | ???????????????????????# #?????????????????????? | | ???????????????????????# k#?????????????????????? | | ???????????????????????# #?????????????????????? | | ???????????????????????# #??????###############? | | ????????????????????##?# #??????# #? | | ????????????????????? # #??????# """ """ """ #? | | ?????????????????????? # #??????# """ """ """ #? | | ???????????????????????+ +??????# """ """ """ #? | | ???????????????????????# #??????# #? | | ???????????????????????# #??????# ! #? | | ???????????????????????# ##############/#######? | | ???????????????????????# # !#?# #?????? | | ???????#########???????# @ + ### ####### | | ???????# #???????# # + # | | ???????# " ######### # ### # | | ???????# """ ## # ###+######### # | | ???????# """ ## # %### ### ## # " | | ???????# """ ## """ + + ## # " | | ######?# "" ## """ # ## ## # " | | #?# """ ! ## """ # "" ## + # " | | #### #?# "" ## # "T ## ## # " | | ##?# #?# """ ######### "" ## ## + | | #?# #?# " #???????# ## ## ####### | | ### ### #???????# ## ! ## #?????? | | # ###+############# ###+### #?????? | | # = #?????? | | + T = +?????? | | # ! #?????? | | # #################+### #?????? | | #######?????????# ####+######### #?????? | | ##???????????????# """"" # #???# #?????? | | ?????????????????# """"" # #???# #####?? | | ?????????????????# """"" # % #???# #?? | | ?????????????????# # #???# #?? | | ?????????????????# """"" # #???# #?? | | ?????????????????# """"" # #???## #?? | | ?????????????????? """"" # #????# #?? | +----------------------------------------------------+ Best States ------------- Heat Dissipation 28 Energy Generation 15 Energy Capacity 600 Matter Stores 300 Matter Capacity 300 Sight Range 16 Robot Scan Range 10 Terrain Scan Density 10 ECM Strength 1 Additional Mass Support 6 Resistance: KI 35 Resistance: TH 35 Resistance: EX 35 Resistance: EM 35 Resistance: I 35 Resistance: S 35 Resistance: P 35 Core Shielding 20 Power Shielding 66 Evasion (%) 50 Armor Integrity Analysis 33 Recoil Reduction 1 Offensive Hacking 20 Item Schematics ----------------- None Robot Schematics ------------------ None Fabricated ------------ Nothing Alien Tech Used ----------------- None Achievements -------------- None Challenges ------------ None Game ------ Seed SiegeMolecularBlaster Manual? 0 Play Time 00:37:33 Cumulative 2.7 hours Start 2021.11.05 @ 07:56:49 End 2021.11.05 @ 08:34:32 Sessions 1 Manual Loads 0 Difficulty Explorer Special Mode None Game No. 2 Rogue 0 Adventurer 0 Explorer 2 Win Type - Total 0 Types 0/0/0/0/0/0/0/0/0 Lore% 2 Gallery% 4 Achievement% 4 Wizard Run 0 Options --------- ASCII 0 Keyboard 0 Movement Mouse Keybinds 0 Fullscreen 1 Font 18/Terminus Map View 76x50 Tactical HUD 1 Map Filters NONE Filters NONE Steam 0 RUN: a8d22e4a-745c-4c99-823f-6aed5f2d60ed